Cogmind - Beta 9.2 @@@ ROGUE MODE // 2019.12.02 @ 06:11:34 Player: zidji Result: Destroyed by G-47 Trooper with Particle Gun Performance ------------- Evolutions (0) 0 Regions Visited (1) 200 Robots Destroyed (15) 75 Value Destroyed (437) 437 Prototype IDs (0) 0 Alien Tech Used (0) 0 Bonus (0) 0 TOTAL SCORE: 712 Bonus ------- None Cogmind --------- Core Integrity 0/250 Matter 286/300 Energy 123/125 System Corruption 0% Temperature Cool (9) Movement Walking (210) Ox3 Location -10/Materials Parts ------- > --- POWER (1) -------- Light Ion Engine > --- PROPULSION (2) --- Aluminum Leg Aluminum Leg > --- UTILITY (2) ------ High-capacity Storage Unit High-capacity Storage Unit > --- WEAPON (2) ------- Assault Rifle Light Assault Rifle > --- INVENTORY (20) --- Light Nuclear Core Aluminum Leg Aluminum Leg Improved Heat Sink Small Storage Unit High-capacity Storage Unit High-capacity Storage Unit High-capacity Storage Unit Improved Targeting Computer Improved Targeting Computer Small Laser Small Laser Assault Rifle Assault Rifle Assault Rifle Grenade Launcher Grenade Launcher Rocket Launcher Rocket Launcher Peak State ------------ > --- POWER ------------ Light Ion Engine > --- PROPULSION ------- Aluminum Leg Aluminum Leg > --- UTILITY ---------- High-capacity Storage Unit High-capacity Storage Unit > --- WEAPON ----------- Assault Rifle Assault Rifle > --- INVENTORY -------- Light Ion Engine Light Treads Light Treads Aluminum Leg Wheel Wheel Small Storage Unit High-capacity Storage Unit High-capacity Storage Unit High-capacity Storage Unit Small Laser Small Laser Assault Rifle Assault Rifle Assault Rifle Assault Rifle Assault Rifle Light Assault Rifle Light Assault Rifle Light Assault Rifle [Rating: 9] Favorites ----------- Power Light Ion Engine Engine Light Ion Engine Propulsion Aluminum Leg Treads Light Treads Leg Aluminum Leg Utility High-capacity Storage Unit Storage High-capacity Storage Unit Weapon Assault Rifle Energy Gun Small Laser Ballistic Gun Assault Rifle Launcher Grenade Launcher Build | -11 -10 ------- Run | Scr Mat Slots Evolved . | . . Power . | . . Propulsion . | . . Utility . | . . Weapon . | . . Parts Attached 22 | . 22 Power 1 | . 1 Engine 1 | . 1 Core . | . . Reactor . | . . Propulsion 8 | . 8 Treads 2 | . 2 Leg 6 | . 6 Wheel . | . . Hover . | . . Flight . | . . Utility 3 | . 3 Device . | . . Storage 3 | . 3 Processor . | . . Hackware . | . . Protection . | . . Artifact . | . . Weapon 10 | . 10 Energy Gun . | . . Energy Cannon . | . . Ballistic Gun 9 | . 9 Ballistic Cannon . | . . Launcher 1 | . 1 Special Weapon . | . . Impact Weapon . | . . Slashing Weapon . | . . Piercing Weapon . | . . Special Melee Weapon . | . . Unidentified Prototypes . | . . Parts Lost 6 | . 6 Power 1 | . 1 Propulsion 2 | . 2 Utility . | . . Weapon 3 | . 3 Highest Loss Streak 5 | . 5 Average Slot Usage (%) 99 | . 99 Engine 13 | . 13 Leg 26 | . 26 Storage 27 | . 27 Ballistic Gun 26 | . 26 Naked Turns . | . . Heaviest Build 71 | 9 71 Greatest Support 40 | 20 40 Greatest Overweight (x) 23 | . 23 Average Overweight (x) 2 | . 2 Largest Inventory Capacity 20 | 6 20 Average Capacity 19 | 6 19 Most Carried 20 | 6 20 Average Carried 16 | 6 16 Final Capacity 20 | 6 20 Final Carried 19 | 6 19 Class Distribution -------------------- 98% | Hauler-Mutant Dominant Class ---------------- Hauler-Mutant | -10/Materials Resources | -11 -10 ----------- Run | Scr Mat Matter Collected 729 | 200 529 Remotely . | . . Salvage Created 512 | . 512 Parts 30 | . 30 Haulers Intercepted . | . . Recyclers Shooed 1 | . 1 Parts Field Recycled . | . . Retrieved Matter . | . . Parts Self-Destructed . | . . Prevented . | . . Kills | -11 -10 ------- Run | Scr Mat Combat Hostiles Destroyed 13 | . 13 Guns 10 | . 10 AOE 3 | . 3 Classes Destroyed 4 | . 4 Builder 1 | . 1 Watcher 1 | . 1 Swarmer 3 | . 3 Grunt 10 | . 10 Best Kill Streak 4 | . 4 Combat Bots Only 4 | . 4 Max Kills in Single Turn 4 | . 4 Gunslinging . | . . Exploded 3 | . 3 Melee . | . . Uniques/NPCs Destroyed . | . . Combat | -11 -10 -------- Run | Scr Mat Damage Taken 1199 | . 1199 Core 265 | . 265 Absorbed by Shields . | . . Core Remaining (%) 100 | 100 . Volleys Fired 71 | . 71 Largest 2 | . 2 Hottest 80 | . 80 Shots Fired 141 | . 141 Gun 140 | . 140 Cannon . | . . Launcher 1 | . 1 Special . | . . Kinetic 132 | . 132 Thermal 8 | . 8 Explosive 1 | . 1 Electromagnetic . | . . Robot Hit Streak 10 | . 10 Robot Miss Streak 5 | . 5 Penetration Max . | . . Secondary Targets 3 | . 3 Max Gunslinging Chain 1 | . 1 Shots Hit Robots 87 | . 87 Core Hits 31 | . 31 Critical Hits . | . . Critical Kills . | . . Critical Parts Destroyed . | . . Melee Attacks . | . . Impact . | . . Slashing . | . . Piercing . | . . Sneak Attacks . | . . Combat Hostiles . | . . Follow-up Attacks . | . . Damage Inflicted 1116 | . 1116 Guns 951 | . 951 Cannons . | . . Explosions 165 | . 165 Melee . | . . Ramming . | . . Kinetic 908 | . 908 Thermal 43 | . 43 Explosive 165 | . 165 Electromagnetic . | . . Impact . | . . Slashing . | . . Piercing . | . . Highest Corruption . | . . Average Corruption . | . . Corruption Purged . | . . Overload Shots . | . . Overflow Damage . | . . Projectiles . | . . Explosions . | . . Melee . | . . Knockbacks . | . . Impact . | . . Kinetic . | . . Secondary . | . . Self-Inflicted Damage . | . . Shots . | . . Rammed . | . . Targets Rammed . | . . Kicked . | . . Crushed . | . . Highest Temperature 102 | . 102 Average Temperature 19 | . 19 Received Heat Transfer 681 | . 681 Siege Activations . | . . Robots Corrupted . | . . Combat Hostiles . | . . Parts Fried . | . . Impact Corruptions . | . . Robots Melted . | . . Combat Hostiles . | . . Parts Melted . | . . Heat Transferred 100 | . 100 Parts Sabotaged . | . . Parts Stolen . | . . Parts Stripped . | . . Power Chain Reactions . | . . Missiles Intercepted . | . . Alert | -11 -10 ------- Run | Scr Mat Peak Influence 189 | . 189 Average Influence 52 | . 52 Maximum Alert Level . | . . Low Security (%) 100 | 100 100 Level 1 . | . . Level 2 . | . . Level 3 . | . . Level 4 . | . . Level 5 . | . . High Security . | . . Max Security . | . . Squads Dispatched 2 | . 2 Investigation . | . . Extermination . | . . Reinforcement 2 | . 2 Assault . | . . Garrison . | . . Intercept . | . . Construction Impeded . | . . Haulers Reinforced . | . . Stealth | -11 -10 --------- Run | Scr Mat Distress Signals 1 | . 1 Communications Jammed . | . . Distress Signals . | . . Times Spotted 23 | . 23 Peak Tracking Total 4 | . 4 Tactical Retreats 1 | . 1 Traps | -11 -10 ------- Run | Scr Mat Traps Triggered 2 | . 2 Indirectly . | . . Trap Hack Attempts . | . . Triggered . | . . Disarmed . | . . Reprogrammed . | . . Reused . | . . Traps Extracted . | . . Installed . | . . Triggered . | . . Machines | -11 -10 ---------- Run | Scr Mat Machines Disabled 2 | . 2 Max in Single Turn 1 | . 1 Machines Sabotaged . | . . Garrisons Compromised . | . . Overloaded Fab Kills . | . . Fab Network Shutdowns . | . . Hacking | -11 -10 --------- Run | Scr Mat Machines Accessed 5 | . 5 Terminals 5 | . 5 Fabricators . | . . Repair Stations . | . . Recycling Units . | . . Scanalyzers . | . . Garrison Access . | . . Total Hacks 16 | . 16 Successful 7 | . 7 Failed 9 | . 9 Catastrophic 1 | . 1 Database Lockouts . | . . Manual 9 | . 9 Terminals 16 | . 16 Fabricators . | . . Repair Stations . | . . Recycling Units . | . . Scanalyzers . | . . Garrison Access . | . . Terminal Hacks 2 | . 2 Registered Components 1 | . 1 Zone Layout 1 | . 1 Fabricator Hacks . | . . Repair Station Hacks . | . . Recycling Unit Hacks . | . . Scanalyzer . | . . Garrison Access Hacks . | . . Unauthorized Hacks 14 | . 14 Terminals 5 | . 5 Track 2 | . 2 Botnet 3 | . 3 Fabricators . | . . Repair Stations . | . . Recycling Units . | . . Scanalyzers . | . . Garrison Access . | . . Data Cores Recovered . | . . Used . | . . Hacking Detections 5 | . 5 Full Trace Events . | . . Feedback Events . | . . Feedback Blocked . | . . Robot Schematics Acquired . | . . Robots Built . | . . Matter . | . . Time . | . . Total Robot Build Rating . | . . Part Schematics Acquired . | . . Parts Built . | . . Matter . | . . Time . | . . Total Part Build Rating . | . . Parts Repaired . | . . Time . | . . Parts Recycled . | . . Recycled Matter . | . . Retrieved Matter . | . . Retrieved Components . | . . Parts Scanalyzed . | . . Part Schematics Acquired . | . . Parts Damaged . | . . Bothacking | -11 -10 ------------ Run | Scr Mat Used RIF Installer . | . . Robots Hacked . | . . Non-combat . | . . Combat . | . . Robot Hacks Applied . | . . Relay Couplers Released . | . . Robots Rewired . | . . Allies Hacked . | . . Hacks Repelled . | . . Allies | -11 -10 -------- Run | Scr Mat Total Allies . | . . Largest Group . | . . Highest-Rated Group . | . . Highest-Rated Ally . | . . Total Orders . | . . Ally Attacks . | . . Total Damage . | . . Kills . | . . Allies Corrupted . | . . Allies Melted . | . . Intel | -11 -10 ------- Run | Scr Mat Robot Analysis Total . | . . Derelict Logs Recovered . | . . Drone Launches . | . . Drone Recoveries . | . . Exploration | -11 -10 ------------- Run | Scr Mat Turns Passed 1875 | 3 1872 Spaces Moved 755 | 3 752 Core 1 | . 1 Treads 8 | . 8 Legs 746 | 3 743 Wheels . | . . Hover . | . . Flight . | . . Fastest Speed 120 | 120 120 Average Speed 208 | 120 209 Slowest Speed 1200 | 120 1200 Overloaded Moves . | . . Propulsion Burnouts . | . . Robots Hopped . | . . Cave-ins Triggered . | . . Exploration Rate (%) 46 | 2 91 Regions Visited 1 Branch Regions . Pre-discovered Areas . | . . Known Exits Taken . | . . Unknown Exits Taken 1 | 1 . Scrap Searched . | . . Spaces Dug . | . . Terrain Destroyed 8 | . 8 Melee . | . . Projectile . | . . AOE 8 | . 8 Actions | -11 -10 --------- Run | Scr Mat Total 915 | 2 913 Wait 41 | . 41 Move 754 | 2 752 Hop . | . . Pick Up 18 | . 18 Fast Attach 6 | . 6 Attach 6 | . 6 Detach 2 | . 2 Swap 10 | . 10 Drop 7 | . 7 Fire 71 | . 71 Melee . | . . Ram . | . . Kick . | . . Crush . | . . Escape Stasis . | . . Rewire . | . . Trap . | . . Miscellaneous . | . . Route ------- -11/Scrapyard -10/Materials (discovered 3 exits: [*Mat x3]) History --------- Turn | Location | Event 1 | -11/Scrapyard | Discovered new exit (range 3) 4 | -11/Scrapyard | Entered Materials 140 | -10/Materials | Discovered new exit (range 10) 335 | -10/Materials | Build established: Hauler-Mutant 921 | -10/Materials | Core integrity fell below 50% 941 | -10/Materials | Core integrity fell below 20% 959 | -10/Materials | Lost 5 parts (1p2n2w) 1305 | -10/Materials | Discovered new exit (range 4) 1759 | -10/Materials | Discovered new exit (range 10) 1876 | -10/Materials | Destroyed by G-47 Trooper with Particle Gun Last Messages --------------- 01310_ Acquired Assault Rifle. 01311_ Triggered Blade Trap. 01311_ Massive razor-sharp blades shoot up from within the floor. 01311_ Lgt. Assault Rifle severed. 01314_ Acquired Aluminum Leg. 01318_ Acquired Lgt. Assault Rifle. 01368_ Acquired 7 matter. 01478_ A-02 Transporter sends out distress signal. 01489_ G-34 Mercenary destroyed. 01491_ Acquired 50 matter. 01494_ K-01 Serf collects debris. 01500_ Dropped Aluminum Leg. 01502_ K-01 Serf collects debris. 01560_ Acquired 139 matter. 01628_ O-16 Technician: "IFF HANDSHAKE FAILED. SECURING TERMINAL." 01638_ ALERT: Hostiles spotted, dispatching reinforcements to Terminal M007. 01724_ G-34 Mercenary destroyed. 01727_ Acquired 16 matter. 01759_ EXIT=FOUND 01872_ Assault Rifle destroyed. Map ----- +----------------------------------------------------+ | # " """ ############### # """ # | | ######### """ "T" #?????????????###### """ # | | ????????# """ #??????????????????# """ # | | ####???## """ #??????????????????# # | | "" #???????????######## ! # | | #####?### """ #???????????# """ #/// # | | #???# "" #???######??# """ #/// # | | #???# "" #??##!!!!##?# """ #/// # | | #???# " #??#! !#?# # # | | """ #???# #???! !#?# #! # | | "" #???# #?????# ### ######## | | """ #???# #?????# ###+####??????? | | #???# #?????# #??????? | | #???# ######+######??# < #??????? | | ###+##### ## #??# #??????? | | % ## """ #??# ##### ##??????? | | ##### ##""""" #??### ###???# #???????? | | #???# ##""""" * #????# #?????# #???????? | | ##+##### ##""""" #????# #?????# #???????? | | # # ## """ ######+####??# #???????? | | # ] # ## # %#??# #???????? | | # ] # ############# #??# #???????? | | # / ####### # """ """ #### #???????? | | # # # """ """ + #???????? | | # # g """ """ # #???????? | | ######### #@""" """ # #???????? | | ????????#######+### # """ """ # #???????? | | ????????# ## ## # ####???????? | | ????????# """ """ ## ############ #??????????? | | ????????# """ """ ## #??????????# #??????????? | | ######### """ """ ## #??????????# #??????????? | | #! ]!!## ## #????????### ############ | | #! ]!!## ## #????????+ + # | | # ## ## #????????# # # | | # #### # ###+##### # # | | #??########### ! # # | | #????????????# + # | | #????????????# # # | | #????????????# #############%# # | | " #?????????????## ##????????????# # # | | " #??????????????????????#########+# # | | " #??????????????????????# """ """ ########## | | ##########?????????????# """ """ #????????? | | #?????????????# """ """ #????????? | | #?????????????# #????????? | | #?????????????# #????????? | | #####+##### ^ #?????????????# #????????? | | # # #?????????????# #????????? | | # """ """# < #?????????????# #????????? | | # """ T"# #?????????????#####+#####????????? | +----------------------------------------------------+ Best States ------------- Heat Dissipation 25 Energy Generation 10 Energy Capacity 125 Matter Stores 300 Matter Capacity 300 Sight Range 16 Terrain Scan Density 10 Evasion (%) 40 Recoil Reduction 2 Item Schematics ----------------- None Robot Schematics ------------------ None Fabricated ------------ Nothing Alien Tech Used ----------------- None Achievements -------------- None Challenges ------------ None Game ------ Seed SystemGrenadePick Manual? 0 Play Time 00:14:18 Cumulative 114.4 hours Start 2019.12.02 @ 06:00:55 End 2019.12.02 @ 06:11:34 Sessions 1 Manual Loads 0 Difficulty Rogue Special Mode None Game No. 95 Rogue 95 Adventurer 0 Explorer 0 Win Type - Total 1 Types 1/0/0/0/0/0/0 Lore% 39 Gallery% 45 Achievement% 41 Wizard Run 0 Options --------- ASCII 0 Keyboard 1 Movement Vi Keybinds 0 Fullscreen 1 Font 14/SmallcapsGlow Map View 84x54 Tactical HUD 1 Map Filters NONE Filters NONE Steam 1 RUN: 8b2db6c5-952d-4bc9-aa63-65194f36fd73